bitfinex/quotes_BTCUSD_20251031
["timestamp","ask_amount","ask_price","bid_price","bid_amount"]
[1761928732863,0.00865139,110220.0,110210.0,0.27097583]
[1761928733745,0.45443185,110230.0,110210.0,0.27097583]
[1761928733960,0.47133079,110230.0,110220.0,0.03952]
[1761928735056,0.47133079,110230.0,110220.0,0.22097527]
[1761928735266,0.63932364,110240.0,110220.0,0.26630573]
[1761928735267,0.6302008,110240.0,110220.0,0.26630573]
[1761928735485,0.00110355,110230.0,110220.0,0.22678573]
[1761928735920,0.00110355,110230.0,110220.0,0.24262573]
[1761928736160,0.00110355,110230.0,110220.0,0.26630573]
[1761928739281,0.00110355,110230.0,110220.0,0.69146075]
[1761928739498,0.00110355,110230.0,110220.0,0.26630573]
[1761928739716,0.00110355,110230.0,110220.0,0.27781573]
[1761928741240,0.18254235,110230.0,110220.0,0.27781573]
[1761928741458,0.00110355,110230.0,110220.0,0.27781573]
[1761928742926,0.18254235,110230.0,110220.0,0.27781573]
[1761928743774,0.60769737,110230.0,110220.0,0.09636046]
[1761928744025,0.60769737,110230.0,110220.0,0.05111735]
[1761928744928,0.61269737,110230.0,110220.0,0.05111735]
[1761928745157,4.05971547,110230.0,110220.0,0.01159735]
[1761928745387,4.41894637,110230.0,110220.0,8.735e-05]
[1761928745585,0.18145527,110220.0,110210.0,0.01151]
[1761928745799,0.18147173,110210.0,110200.0,0.03519]
[1761928746009,3.62005658,110210.0,110200.0,0.02735]
[1761928746235,0.1814882,110200.0,110190.0,0.03519]
[1761928746491,0.61507305,110200.0,110190.0,0.24315184]
[1761928746724,0.61507305,110200.0,110190.0,0.23531184]
[1761928746725,0.00842983,110200.0,110190.0,0.23531184]
[1761928746984,4.816e-05,110220.0,110210.0,0.18147173]
[1761928747225,0.18150343,110220.0,110210.0,0.24511623]
[1761928747482,0.18150343,110220.0,110210.0,0.0873245]
[1761928747737,0.60665845,110220.0,110210.0,0.0873245]
[1761928749552,0.18150343,110220.0,110210.0,0.05103]
[1761928749760,0.66415438,110220.0,110210.0,0.05103]
[1761928750187,0.68358449,110220.0,110210.0,0.05103]
[1761928750371,0.21516496,110220.0,110210.0,0.05103]
[1761928750632,0.20093354,110220.0,110210.0,0.05103]
[1761928750842,0.68858449,110220.0,110210.0,0.02735]
[1761928751265,0.20681646,110220.0,110210.0,0.02735]
[1761928751447,0.22368616,110220.0,110210.0,0.02735]
[1761928751645,0.22368615,110220.0,110210.0,0.02735]
[1761928751869,0.20181646,110220.0,110210.0,0.05103]
[1761928752062,0.18238635,110220.0,110210.0,0.05103]
[1761928752265,0.19925759,110220.0,110210.0,0.05103]
[1761928752469,0.18238635,110220.0,110210.0,0.05103]
[1761928753527,0.19661797,110220.0,110210.0,0.05103]
[1761928753953,0.18147173,110210.0,110200.0,0.02368]
[1761928754166,0.1814882,110200.0,110190.0,0.06164717]
[1761928754391,0.1814882,110200.0,110190.0,0.03519]
[1761928754600,0.66913915,110200.0,110190.0,0.02735]
[1761928754826,0.18150467,110190.0,110180.0,0.03519]
[1761928755045,0.66415562,110190.0,110180.0,0.03519]
[1761928755307,0.66415562,110190.0,110180.0,0.05103]
[1761928755519,0.18150467,110190.0,110180.0,0.05103]
[1761928755970,0.18150467,110190.0,110180.0,0.07428659]
[1761928757451,0.18150467,110190.0,110180.0,0.25580773]
[1761928757660,0.18150467,110190.0,110180.0,0.07428659]
[1761928759006,0.18994865,110190.0,110180.0,0.07428659]
[1761928759465,0.18994865,110190.0,110180.0,0.25580773]
[1761928759671,0.18994865,110190.0,110180.0,0.07428659]
[1761928760081,0.18994865,110190.0,110180.0,0.25580773]
[1761928760289,0.19016944,110190.0,110180.0,0.25580773]
[1761928760509,0.00866477,110190.0,110180.0,0.25580773]
[1761928760733,0.18172546,110190.0,110180.0,0.25580773]
[1761928761153,0.00022079,110190.0,110180.0,0.25580773]
[1761928761837,0.00022079,110190.0,110180.0,0.25880773]
[1761928762053,0.18172546,110190.0,110180.0,0.25880773]
[1761928762283,0.00022079,110190.0,110180.0,0.25880773]
[1761928762496,0.18147214,110210.0,110190.0,0.18148616]
[1761928762711,0.00844869,110210.0,110200.0,0.19794796]
[1761928763185,0.00844869,110210.0,110200.0,0.22073796]
[1761928763829,0.19057619,110220.0,110210.0,0.18147173]
[1761928764012,0.213256,110220.0,110210.0,0.23259173]
[1761928764335,0.213256,110220.0,110210.0,0.2739997]
[1761928764746,0.213256,110220.0,110210.0,0.09252797]
[1761928764955,0.213256,110220.0,110210.0,0.2739997]
[1761928765163,0.213256,110220.0,110210.0,0.2719997]
[1761928765368,0.03180073,110220.0,110210.0,0.2719997]
[1761928765579,0.20518324,110220.0,110210.0,0.2719997]
[1761928766005,0.02772797,110220.0,110210.0,0.2719997]
[1761928766205,0.02672797,110220.0,110210.0,0.2719997]
[1761928766331,0.02272797,110220.0,110210.0,0.2719997]
[1761928767237,0.20418324,110220.0,110210.0,0.2719997]
[1761928767878,0.19051074,110230.0,110210.0,0.2719997]
[1761928768083,0.18145527,110220.0,110210.0,0.23489443]
[1761928768516,0.19051074,110230.0,110220.0,0.01646]
[1761928768749,0.19051074,110230.0,110220.0,0.06478544]
[1761928768976,0.19051074,110230.0,110220.0,0.24624071]
[1761928769215,0.19051074,110230.0,110220.0,0.06478544]
[1761928769834,0.19051074,110230.0,110220.0,0.06678544]
[1761928771364,3.62246427,110230.0,110220.0,0.01846]
[1761928771606,3.96246427,110230.0,110220.0,0.002]
[1761928771861,4.43060008,110230.0,110220.0,0.002]
[1761928772083,4.43060008,110230.0,110210.0,0.00014473]
[1761928772084,0.52145527,110220.0,110210.0,0.00014473]
[1761928772305,4.0033929,110220.0,110210.0,0.01201473]
[1761928772534,3.9461888,110220.0,110210.0,0.05126473]
[1761928772751,0.97346399,110220.0,110210.0,0.05126473]
[1761928772958,0.97346399,110220.0,110210.0,0.0563912]
[1761928773174,0.97446399,110220.0,110210.0,0.0563912]
[1761928773379,0.52245527,110220.0,110210.0,0.0563912]
[1761928773599,0.52311743,110220.0,110210.0,0.05126473]
[1761928774028,0.18311743,110220.0,110210.0,0.05126473]
[1761928775365,0.18311743,110220.0,110210.0,0.23273646]
[1761928775581,0.18311743,110220.0,110210.0,0.05126473]
[1761928775811,0.18311743,110220.0,110210.0,0.2560115]
[1761928776234,0.18211743,110220.0,110210.0,0.2560115]
[1761928776661,0.18211743,110220.0,110210.0,0.2570115]
[1761928776662,0.00066216,110220.0,110210.0,0.2570115]
[1761928777114,0.18211743,110220.0,110210.0,0.2570115]
[1761928777753,0.00066216,110220.0,110210.0,0.2570115]
[1761928779060,0.00066216,110220.0,110210.0,0.25696463]
[1761928779464,0.18211743,110220.0,110210.0,0.25696463]
[1761928781540,0.18211743,110220.0,110210.0,0.0754929]
[1761928781928,0.19634836,110220.0,110210.0,0.0754929]
[1761928782388,0.19634836,110220.0,110210.0,0.25696463]
[1761928782726,0.19634836,110220.0,110210.0,0.0754929]
[1761928784388,0.19634836,110220.0,110210.0,0.25696463]
[1761928786781,0.19634836,110220.0,110210.0,0.0754929]
[1761928789790,0.19634836,110220.0,110210.0,0.05221786]
[1761928790424,0.20480271,110220.0,110210.0,0.05221786]
[1761928793530,0.62953221,110220.0,110210.0,0.05221786]
[1761928794074,0.63675221,110220.0,110210.0,0.05221786]
[1761928794888,3.64397221,110220.0,110210.0,0.00109786]
[1761928795112,3.21202271,110220.0,110210.0,0.00109786]
[1761928795401,3.63675221,110220.0,110210.0,0.00109786]
[1761928795803,4.08821215,110220.0,110210.0,0.00109786]
[1761928796014,3.66348265,110220.0,110210.0,0.00109786]
[1761928796224,3.66348265,110220.0,110210.0,0.02725786]
[1761928796225,3.65626265,110220.0,110210.0,0.02725786]
[1761928796362,3.63053221,110220.0,110210.0,0.05129786]
[1761928797034,0.63053221,110220.0,110210.0,0.05129786]
[1761928797246,0.63053221,110220.0,110210.0,0.05761465]
[1761928797247,0.20580271,110220.0,110210.0,0.05761465]
[1761928798511,0.63053221,110220.0,110210.0,0.05761465]
[1761928799172,0.65780613,110220.0,110210.0,0.05761465]
[1761928799376,0.6435752,110220.0,110210.0,0.05761465]
[1761928800508,0.6507952,110220.0,110210.0,0.02725786]
[1761928800735,3.67030099,110220.0,110210.0,0.02725786]
[1761928801015,4.09503019,110220.0,110210.0,9.786e-05]
[1761928801246,4.4953643,110220.0,110210.0,9.786e-05]
[1761928802645,4.50859757,110220.0,110210.0,9.786e-05]
[1761928802875,4.51159757,110220.0,110210.0,9.786e-05]
[1761928803105,4.49466574,110220.0,110210.0,9.786e-05]
[1761928803330,4.48321139,110220.0,110210.0,9.786e-05]
[1761928803575,4.48921139,110220.0,110210.0,9.786e-05]
[1761928803801,4.49121139,110220.0,110210.0,9.786e-05]
[1761928804030,4.48921139,110220.0,110210.0,9.786e-05]
[1761928804469,4.46393747,110220.0,110210.0,9.786e-05]
[1761928805343,4.48932586,110220.0,110210.0,9.786e-05]
[1761928805555,4.37018395,110220.0,110210.0,9.786e-05]
[1761928805767,3.62494104,110220.0,110210.0,9.786e-05]
[1761928805975,4.36172138,110220.0,110210.0,9.786e-05]
[1761928807102,4.35450138,110220.0,110210.0,9.786e-05]
[1761928807357,4.3183191,110220.0,110210.0,0.01538786]
[1761928807569,4.3183191,110220.0,110210.0,0.02725786]
[1761928807793,4.3163191,110220.0,110210.0,0.02725786]
[1761928808004,4.3173191,110220.0,110210.0,0.02725786]
[1761928808213,3.56407619,110220.0,110210.0,0.02725786]
[1761928808421,4.3123191,110220.0,110210.0,0.02725786]
[1761928808633,4.3195391,110220.0,110210.0,9.786e-05]
[1761928808840,4.35572138,110220.0,110210.0,9.786e-05]
[1761928809467,4.38112697,110220.0,110210.0,9.786e-05]
[1761928809874,4.36418991,110220.0,110210.0,9.786e-05]
[1761928811803,4.36618991,110220.0,110210.0,9.786e-05]
[1761928812016,4.36418991,110220.0,110210.0,9.786e-05]
[1761928813119,4.37842973,110220.0,110210.0,9.786e-05]
[1761928815343,4.37120973,110220.0,110210.0,9.786e-05]
[1761928815553,4.37842973,110220.0,110210.0,9.786e-05]
[1761928819354,4.33502745,110220.0,110210.0,0.02731786]
[1761928819989,4.33502745,110220.0,110210.0,0.01174786]
[1761928820388,4.33502745,110220.0,110210.0,9.786e-05]
[1761928821634,4.34224745,110220.0,110210.0,9.786e-05]
[1761928821831,4.33502745,110220.0,110210.0,9.786e-05]
[1761928822872,4.34224745,110220.0,110210.0,9.786e-05]
[1761928823308,4.33502745,110220.0,110210.0,9.786e-05]
[1761928823756,4.35919694,110220.0,110210.0,9.786e-05]
[1761928825082,4.39537922,110220.0,110210.0,9.786e-05]
[1761928825497,4.13099398,110220.0,110210.0,9.786e-05]
[1761928827543,4.92307565,110220.0,110210.0,9.786e-05]
[1761928827997,4.92507565,110220.0,110210.0,9.786e-05]
[1761928828218,4.91083583,110220.0,110210.0,9.786e-05]
[1761928828754,4.91084576,110220.0,110210.0,9.786e-05]
[1761928830736,4.95931075,110220.0,110210.0,9.786e-05]
[1761928830943,4.95931075,110220.0,110180.0,0.01151]
[1761928830944,4.03146423,110190.0,110180.0,0.01151]
[1761928831150,4.04716269,110190.0,110180.0,0.01151]
[1761928831351,4.04716269,110190.0,110180.0,4.816e-05]
[1761928831626,4.41391816,110190.0,110180.0,4.816e-05]
[1761928831849,4.45732044,110190.0,110180.0,4.816e-05]
[1761928832075,4.89925519,110190.0,110180.0,0.00504816]
[1761928832298,3.18153762,110170.0,110160.0,0.00604433]
[1761928832549,4.03871718,110170.0,110160.0,0.00618909]
[1761928832763,4.04593718,110170.0,110160.0,0.00618909]
[1761928832979,4.38593718,110170.0,110160.0,0.00618909]
[1761928833401,4.01920425,110170.0,110160.0,0.00618909]
[1761928834275,4.02846414,110170.0,110160.0,0.00618909]
[1761928834719,4.03548215,110170.0,110160.0,0.00618909]
[1761928834932,4.02826215,110170.0,110160.0,0.04607082]
[1761928835412,4.03548215,110170.0,110160.0,0.02264082]
[1761928837045,4.03548215,110170.0,110160.0,0.00707082]
[1761928837894,4.04270215,110170.0,110160.0,0.00707082]
[1761928838746,4.56211106,110170.0,110160.0,0.00707082]
[1761928839212,4.57056639,110170.0,110160.0,0.00707082]
[1761928839425,4.57256639,110170.0,110160.0,0.00707082]
[1761928839630,4.57056639,110170.0,110160.0,0.00707082]
[1761928840041,3.58141979,110170.0,110160.0,0.00607082]
[1761928840201,4.06464642,110170.0,110160.0,0.00607082]
[1761928840406,4.06864642,110170.0,110160.0,0.00607082]
[1761928841595,4.08289066,110170.0,110160.0,0.00607082]
[1761928842128,4.06864642,110170.0,110160.0,0.00607082]
[1761928844505,4.31174642,110170.0,110160.0,0.00607082]
[1761928845059,4.32599067,110170.0,110160.0,0.00607082]
[1761928846492,4.8092173,110170.0,110160.0,0.00607082]
[1761928846745,4.81766817,110170.0,110160.0,0.00607082]
[1761928846959,4.57656817,110170.0,110160.0,1e-08]
[1761928847175,3.55975286,110150.0,110140.0,0.0290429]
[1761928847379,4.05019949,110150.0,110140.0,0.02918776]
[1761928847589,4.05741949,110150.0,110140.0,0.02918776]
[1761928848020,4.08471821,110150.0,110140.0,0.02918776]
[1761928848403,4.15142366,110150.0,110140.0,0.02918776]
[1761928848839,4.11524138,110150.0,110140.0,0.02918776]
[1761928849294,4.15142366,110150.0,110140.0,0.02918776]
[1761928850183,4.15242366,110150.0,110140.0,0.02918776]
[1761928850409,0.18163654,110110.0,110100.0,0.01165]
[1761928850637,0.18165304,110100.0,110090.0,0.04119]
[1761928850849,0.66487967,110100.0,110090.0,0.04167138]
[1761928851060,0.66487967,110100.0,110090.0,0.05714138]
[1761928851952,0.66487967,110100.0,110090.0,0.24081092]
[1761928852167,0.66487967,110100.0,110090.0,0.05914138]
[1761928852408,0.19080891,110100.0,110090.0,0.05914138]
[1761928852655,0.67403554,110100.0,110090.0,0.03468138]
[1761928852842,0.67403554,110100.0,110090.0,0.05914138]
[1761928853100,0.19080891,110100.0,110090.0,0.06068857]
[1761928853334,0.66487967,110100.0,110090.0,0.06068857]
[1761928853542,0.18165304,110100.0,110090.0,0.06968857]
[1761928853760,0.19589893,110100.0,110090.0,0.06968857]
[1761928854180,0.18975407,110100.0,110090.0,0.06968857]
[1761928855015,0.19697407,110100.0,110090.0,0.04522857]
[1761928855220,0.6802007,110100.0,110090.0,0.04522857]
[1761928855634,3.6802007,110100.0,110090.0,0.04522857]
[1761928855843,3.6802007,110100.0,110090.0,0.02975857]
[1761928856442,3.6802007,110100.0,110090.0,0.03622857]
[1761928856656,3.6802007,110100.0,110090.0,0.03822857]
[1761928856949,3.67209967,110100.0,110090.0,0.03922857]
[1761928858116,3.67209967,110100.0,110090.0,0.06368857]
[1761928858550,3.67209967,110100.0,110090.0,0.03922857]
[1761928859194,4.01931967,110100.0,110090.0,0.01242857]
[1761928859417,4.05550195,110100.0,110090.0,0.01242857]
[1761928859630,4.06393773,110100.0,110090.0,0.01242857]
[1761928860082,4.06393773,110100.0,110090.0,0.01142857]
[1761928860299,4.06593773,110100.0,110090.0,0.01142857]
[1761928860521,4.06493773,110100.0,110090.0,0.01142857]
[1761928860742,4.0763663,110100.0,110090.0,0.01142857]
[1761928860943,3.53108882,110100.0,110090.0,0.03822857]
[1761928861156,1.00587967,110100.0,110090.0,0.05868857]
[1761928861579,1.00887967,110100.0,110090.0,0.05868857]
[1761928861828,1.01731487,110100.0,110090.0,0.05868857]
[1761928862058,4.02875487,110100.0,110090.0,0.00742857]
[1761928862274,4.11392125,110100.0,110090.0,0.00942857]
[1761928862495,4.12491027,110100.0,110090.0,0.00942857]
[1761928862708,4.15219692,110100.0,110090.0,0.01042857]
[1761928862924,4.63542216,110100.0,110090.0,0.01042857]
[1761928863131,4.64017257,110100.0,110090.0,0.00842857]
[1761928863346,4.64017257,110100.0,110090.0,0.00742857]
[1761928863782,4.64117257,110100.0,110090.0,0.00742857]
[1761928864427,4.64113894,110100.0,110090.0,0.00742857]
[1761928865043,4.64413894,110100.0,110090.0,1e-08]
[1761928865256,4.65838776,110100.0,110090.0,1e-08]
[1761928866118,3.57429182,110090.0,110080.0,1e-08]
[1761928866362,4.58542093,110090.0,110080.0,1e-08]
[1761928866584,3.57430832,110080.0,110070.0,1e-08]
[1761928866794,4.63542153,110080.0,110070.0,8.779e-05]
[1761928867036,4.63542153,110080.0,110070.0,0.00053006]
[1761928867268,4.62224007,110080.0,110070.0,0.00053006]
[1761928867907,4.69058367,110080.0,110070.0,0.00053006]
[1761928868183,4.69058367,110080.0,110070.0,1e-08]
[1761928868410,4.69458367,110080.0,110070.0,1e-08]
[1761928868848,4.71238153,110080.0,110070.0,1e-08]
[1761928869064,3.76018464,110080.0,110070.0,1e-08]
[1761928869274,4.7266379,110080.0,110070.0,1e-08]
[1761928869494,4.70395362,110080.0,110070.0,1e-08]
[1761928869734,4.71234856,110080.0,110070.0,1e-08]
[1761928871615,3.55788483,110070.0,110060.0,0.0004]
[1761928871836,4.05755146,110070.0,110060.0,0.0004]
[1761928872076,3.18171906,110060.0,110050.0,0.0004]
[1761928872305,4.2507787,110060.0,110050.0,0.0004]
[1761928872530,4.2507787,110060.0,110050.0,0.00084239]
[1761928873251,3.78488508,110060.0,110050.0,0.00084239]
[1761928873472,4.10555207,110060.0,110050.0,0.00084239]
[1761928874370,4.12488447,110060.0,110050.0,0.00084239]
[1761928874594,4.10755207,110060.0,110050.0,0.00184239]
[1761928874838,4.10555207,110060.0,110050.0,0.00184239]
[1761928875041,4.10555207,110060.0,110050.0,0.00084239]
[1761928875266,4.12788625,110060.0,110050.0,0.00084239]
[1761928875497,4.12380658,110060.0,110050.0,0.00084239]
[1761928876274,4.14314432,110060.0,110050.0,0.00084239]
[1761928877153,4.14114645,110060.0,110050.0,0.00084239]
[1761928877357,4.12180658,110060.0,110050.0,0.00084239]
[1761928877562,4.36490658,110060.0,110050.0,0.00084239]
[1761928878182,4.36490658,110060.0,110040.0,0.0004]
[1761928878183,3.18173557,110050.0,110040.0,0.0004]
[1761928878396,4.16462883,110050.0,110040.0,0.0004]
[1761928878604,4.19881111,110050.0,110040.0,0.0004]
[1761928878822,4.56015486,110050.0,110040.0,1e-08]
[1761928879024,4.56015486,110050.0,110030.0,1e-08]
[1761928879025,3.56515437,110040.0,110030.0,1e-08]
[1761928879237,0.56517088,110030.0,110020.0,1e-08]
[1761928879447,4.06483751,110030.0,110020.0,8.746e-05]
[1761928879657,4.08929484,110030.0,110020.0,8.746e-05]
[1761928880526,4.15979622,110030.0,110020.0,8.746e-05]
[1761928881767,4.16079622,110030.0,110020.0,8.746e-05]
[1761928882239,4.13633889,110030.0,110020.0,8.746e-05]
[1761928882452,4.61956552,110030.0,110020.0,8.746e-05]
[1761928882658,4.65828515,110030.0,110020.0,8.746e-05]
[1761928882871,4.17505852,110030.0,110020.0,8.746e-05]
[1761928883084,4.18812819,110030.0,110020.0,8.746e-05]
[1761928884236,4.20750515,110030.0,110020.0,8.746e-05]
[1761928884442,4.45060515,110030.0,110020.0,8.746e-05]
[1761928884667,4.45060515,110030.0,110020.0,0.0007513]
[1761928885291,4.46744261,110030.0,110020.0,0.0007513]
[1761928885489,4.73412727,110030.0,110020.0,0.0007513]
[1761928885693,4.74838947,110030.0,110020.0,0.0007513]
[1761928886356,4.74838947,110030.0,110020.0,1e-08]
[1761928886573,4.76264841,110030.0,110020.0,1e-08]
[1761928888196,4.76265778,110030.0,110020.0,1e-08]
[1761928889046,4.76265778,110030.0,110000.0,30.14089909]
[1761928889047,0.18180165,110010.0,110000.0,30.14089909]
[1761928889250,3.98906141,110010.0,110000.0,30.14089909]
[1761928889450,4.23938141,110010.0,110000.0,30.14089909]
[1761928889650,4.23938141,110010.0,110000.0,30.14134178]
[1761928890389,4.27565831,110010.0,110000.0,30.14234178]
[1761928890590,4.30011564,110010.0,110000.0,30.14234178]
[1761928891429,4.30908891,110010.0,110000.0,30.14234178]
[1761928891835,4.28463158,110010.0,110000.0,30.14234178]
[1761928892042,3.53472029,110010.0,110000.0,30.14234178]
[1761928892244,4.31359386,110010.0,110000.0,30.14234178]
[1761928892865,4.32081386,110010.0,110000.0,30.14234178]
[1761928893075,4.31359386,110010.0,110000.0,30.14234178]
[1761928893277,4.32081386,110010.0,110000.0,30.14234178]
[1761928894349,4.31359386,110010.0,110000.0,30.14234178]
[1761928894558,4.32081386,110010.0,110000.0,30.14234178]
[1761928894968,4.31359386,110010.0,110000.0,30.14234178]
[1761928895185,4.32081386,110010.0,110000.0,30.14234178]
[1761928895393,4.32081386,110010.0,110000.0,30.14134178]
[1761928895608,4.32181386,110010.0,110000.0,30.14134178]
[1761928895817,4.32381386,110010.0,110000.0,30.14134178]
[1761928896035,4.33607679,110010.0,110000.0,30.14134178]
[1761928898436,4.33807679,110010.0,110000.0,30.14134178]
[1761928898877,4.36728833,110010.0,110000.0,30.14134178]
[1761928899104,4.70728833,110010.0,110000.0,30.14134178]
[1761928899323,4.68085791,110010.0,110000.0,30.14134178]
[1761928899804,4.70531524,110010.0,110000.0,30.14134178]
[1761928900016,4.71957535,110010.0,110000.0,30.14134178]
[1761928900240,4.69511802,110010.0,110000.0,30.14134178]
[1761928900456,4.68789802,110010.0,110000.0,30.14134178]
[1761928900662,4.69511802,110010.0,110000.0,30.14134178]
[1761928902287,4.69711802,110010.0,110000.0,30.14134178]
[1761928902515,4.69511802,110010.0,110000.0,30.14134178]
[1761928902985,4.69711802,110010.0,110000.0,30.14134178]
[1761928903211,4.69511802,110010.0,110000.0,30.14134178]
[1761928904144,4.72157535,110010.0,110000.0,30.14134178]
[1761928904626,4.77004034,110010.0,110000.0,30.14134178]
[1761928904855,4.02012905,110010.0,110000.0,30.14134178]
[1761928905059,4.77004034,110010.0,110000.0,30.14134178]
[1761928905715,5.20392931,110010.0,110000.0,29.30798218]
[1761928905945,4.47984291,110010.0,110000.0,29.30798218]
[1761928906161,4.47984291,110010.0,110000.0,28.51169508]
[1761928906162,5.23975419,110010.0,110000.0,28.51169508]
[1761928906375,5.24975418,110010.0,110000.0,27.8740927]
[1761928906617,5.24975418,110010.0,110000.0,27.14216578]
[1761928906618,5.34454418,110010.0,110000.0,27.14216578]
[1761928906839,5.25894176,110010.0,110000.0,22.33820626]
[1761928907061,5.26594176,110010.0,110000.0,22.05804427]
[1761928907330,5.37244823,110010.0,110000.0,21.63832941]
[1761928907565,5.37244823,110010.0,110000.0,21.5834359]
[1761928907566,5.37544823,110010.0,110000.0,21.5834359]
[1761928907784,4.76816123,110010.0,110000.0,18.72485881]
[1761928908007,4.76816123,110010.0,110000.0,18.44215459]
[1761928908247,4.76816123,110010.0,110000.0,18.18251181]
[1761928908248,4.73871072,110010.0,110000.0,18.18251181]
[1761928908480,4.73871072,110010.0,110000.0,17.96340032]
[1761928908718,4.79062622,110010.0,110000.0,17.25582637]
[1761928908930,4.73648622,110010.0,110000.0,17.02223139]
[1761928909143,4.74448622,110010.0,110000.0,16.77582676]
[1761928909381,4.69418622,110010.0,110000.0,16.50164759]
[1761928909630,4.71567431,110010.0,110000.0,16.26378482]
[1761928909878,4.34312123,110010.0,110000.0,15.71106737]
[1761928910138,3.96218234,110010.0,110000.0,15.12996287]
[1761928910368,3.93838234,110010.0,110000.0,14.72861467]
[1761928910602,3.93838234,110010.0,110000.0,14.48270762]
[1761928910603,3.88532223,110010.0,110000.0,14.48270762]
[1761928910822,3.20002114,110010.0,110000.0,13.10391853]
[1761928911051,3.20002114,110010.0,110000.0,12.89628661]
[1761928911281,3.22447165,110010.0,110000.0,12.70692723]
[1761928911510,3.22447165,110010.0,110000.0,12.47863095]
[1761928911751,3.22447165,110010.0,110000.0,11.95386607]
[1761928911976,3.16911374,110010.0,110000.0,11.73342216]
[1761928912211,3.15766323,110010.0,110000.0,11.38892018]
[1761928912423,3.10612114,110010.0,110000.0,11.06411526]
[1761928912657,3.11012114,110010.0,110000.0,10.88463063]
[1761928912870,3.11012114,110010.0,110000.0,10.74216193]
[1761928913103,3.11012114,110010.0,110000.0,10.57878986]
[1761928913316,3.11012114,110010.0,110000.0,10.32683278]
[1761928913539,3.12438632,110010.0,110000.0,10.07417592]
[1761928913784,3.10749828,110010.0,110000.0,9.89530253]
[1761928913994,3.11592117,110010.0,110000.0,9.51625956]
[1761928914205,3.10749828,110010.0,110000.0,9.35017352]
[1761928914415,3.10749828,110010.0,110000.0,9.10709628]
[1761928914628,3.10749828,110010.0,110000.0,8.94825306]
[1761928914842,3.11591867,110010.0,110000.0,8.80601662]
[1761928915106,3.11591867,110010.0,110000.0,8.62654654]
[1761928915306,3.11591867,110010.0,110000.0,8.31887997]
[1761928915526,3.16441029,110010.0,110000.0,8.03895235]
[1761928915696,3.16441029,110010.0,110000.0,7.75350609]
[1761928915911,3.11591867,110010.0,110000.0,7.5722867]
[1761928916116,3.11591867,110010.0,110000.0,7.38640142]
[1761928916325,3.11591867,110010.0,110000.0,7.29030873]
[1761928916551,3.19175582,110010.0,110000.0,7.06577903]
[1761928916970,3.19175582,110010.0,110000.0,6.69441303]
[1761928917184,3.19175582,110010.0,110000.0,6.46318038]
[1761928917396,3.19175582,110010.0,110000.0,5.91812594]
[1761928917619,3.19175582,110010.0,110000.0,5.67132107]
[1761928917827,3.19175582,110010.0,110000.0,5.55365846]
[1761928918047,3.19175582,110010.0,110000.0,5.2451831]
[1761928918261,3.18333543,110010.0,110000.0,4.75032999]
[1761928918450,3.18333543,110010.0,110000.0,4.56553708]
[1761928918688,3.18333543,110010.0,110000.0,4.32502953]
[1761928918924,3.18333543,110010.0,110000.0,4.20643074]
[1761928919135,3.18956493,110010.0,110000.0,3.98808377]
[1761928919374,3.18956493,110010.0,110000.0,3.47761762]
[1761928919585,3.18956493,110010.0,110000.0,3.2754668]
[1761928920007,3.18956493,110010.0,110000.0,2.82665578]
[1761928920224,3.13676493,110010.0,110000.0,2.77785578]
[1761928920444,3.12250382,110010.0,110000.0,2.41831389]
[1761928920663,3.12250382,110010.0,110000.0,1.99872677]
[1761928920893,3.12250382,110010.0,110000.0,1.72041039]
[1761928921109,3.21840382,110010.0,110000.0,0.40801911]
[1761928921329,3.30156881,110010.0,110000.0,0.15606583]
[1761928921621,0.2631,109930.0,109920.0,0.0300429]
[1761928921839,4.32496839,109910.0,109900.0,0.0004]
[1761928922056,4.32426839,109910.0,109900.0,0.0004]
[1761928922276,3.5743571,109910.0,109900.0,0.0004]
[1761928922941,4.32571255,109910.0,109900.0,0.0004]
[1761928923185,4.32771255,109910.0,109900.0,0.0004]
[1761928923404,4.35889483,109910.0,109900.0,0.0014]
[1761928923846,4.37316748,109910.0,109900.0,0.0014]
[1761928924082,4.3369852,109910.0,109900.0,0.0014]
[1761928924309,4.3379852,109910.0,109900.0,0.0104]
[1761928925202,4.51995226,109910.0,109900.0,0.0104]
[1761928925905,4.3379852,109910.0,109900.0,0.0104]
[1761928926333,4.34719228,109910.0,109900.0,0.0104]
[1761928926566,4.33291963,109910.0,109900.0,0.0104]
[1761928926830,4.51488669,109910.0,109900.0,0.0104]
[1761928927064,4.55106897,109910.0,109900.0,0.0104]
[1761928928855,4.36910191,109910.0,109900.0,0.0104]
[1761928929070,3.58100834,109910.0,109900.0,0.0104]
[1761928929290,3.58100834,109910.0,109900.0,0.0126157]
[1761928929501,4.33291963,109910.0,109900.0,0.0126157]
[1761928929732,4.51488669,109910.0,109900.0,0.0126157]
[1761928930387,4.33291963,109910.0,109900.0,0.0126157]
[1761928930620,3.57970834,109910.0,109900.0,0.0126157]
[1761928930857,3.57840834,109910.0,109900.0,0.0286857]
[1761928931281,3.57970834,109910.0,109900.0,0.0286857]
[1761928931494,3.57970834,109910.0,109900.0,0.0126157]
[1761928931706,3.58100834,109910.0,109900.0,0.0126157]
[1761928932570,4.33091963,109910.0,109900.0,0.0126157]
[1761928932843,3.57970834,109910.0,109900.0,0.0126157]
[1761928933301,3.57970834,109910.0,109900.0,0.0286857]
[1761928933537,3.59175834,109910.0,109900.0,0.0286857]
[1761928933755,3.61446834,109910.0,109900.0,0.0126157]
[1761928933981,3.59175834,109910.0,109900.0,0.0286857]
[1761928934489,3.62411586,109910.0,109900.0,0.0286857]
[1761928934724,0.23420126,109910.0,109900.0,0.84423084]
[1761928934940,0.23420126,109910.0,109900.0,0.99003218]
[1761928935164,0.23420126,109910.0,109900.0,0.98471061]
[1761928935392,0.23420126,109910.0,109900.0,0.0286857]
[1761928935637,0.26170126,109910.0,109900.0,0.0286857]
[1761928935861,0.24525126,109910.0,109900.0,0.20066932]
[1761928936082,0.23520126,109910.0,109900.0,0.23979932]
[1761928936306,0.23420126,109910.0,109900.0,0.23979932]
[1761928936518,0.23320126,109910.0,109900.0,0.22479932]
[1761928936733,0.23420126,109910.0,109900.0,0.21195632]
[1761928936962,0.23520126,109910.0,109900.0,0.22195632]
[1761928937189,0.23520126,109910.0,109900.0,0.97186761]
[1761928937416,0.23420126,109910.0,109900.0,0.96186761]
[1761928937642,0.00214416,109910.0,109900.0,0.97486761]
[1761928938061,0.00214416,109910.0,109900.0,1.0007895]
[1761928938305,0.00957764,109910.0,109900.0,1.0007895]
[1761928938550,0.01057764,109910.0,109900.0,1.0007895]
[1761928939210,0.00214416,109910.0,109900.0,1.09060851]
[1761928939420,0.00214416,109910.0,109900.0,1.0007895]
[1761928941059,0.00214416,109910.0,109900.0,0.06889459]
[1761928941304,0.00214416,109910.0,109900.0,0.25087821]
[1761928941505,0.04797588,109940.0,109920.0,0.93186179]
[1761928941720,0.02637773,109940.0,109930.0,0.11198]
[1761928942611,0.02637773,109940.0,109930.0,0.32125666]
[1761928943030,0.02270773,109940.0,109930.0,0.41745666]
[1761928943635,0.02270773,109940.0,109930.0,0.42245666]
[1761928943835,0.03958386,109940.0,109930.0,0.42245666]
[1761928944056,0.02270773,109940.0,109930.0,0.42245666]